[Event "XII Cracow ICC-A 2024"]
[Site "Krakow"]
[Date "2024.06.28"]
[Round "8.18"]
[White "Zwardon, Vojtech"]
[Black "Jaskolka, Tomasz"]
[Result "1-0"]
[ECO "A29"]
[WhiteElo "2458"]
[BlackElo "2249"]
[Annotator "TA"]
[PlyCount "119"]
[EventDate "2024.06.20"]
[EventType "swiss"]
[EventCountry "POL"]
[SourceTitle "playchess.com"]
[Source "ChessBase"]
[SourceQuality "1"]
[TimeControl "40/5400+30:1800+30"]

{[%evp 17,119,16,13,29,4,12,23,16,24,6,8,-1,0,-17,-2,-5,-9,-14,-16,-26,-10,-17,0,0,0,0,0,-5,0,0,0,0,76,2,104,58,62,54,67,57,62,55,43,47,47,26,20,8,64,0,1,9,0,0,0,0,0,0,0,0,0,0,0,0,0,0,110,0,0,0,123,120,120,120,106,106,355,357,322,298,311,304,301,311,312,294,5052,5052,29970,29971,29970,29972,29972,29973,29974,29975,29977,29978,29978,29979,29978,29979,29982,29983]} 1. c4 {[%emt 0:04:03]} e5 {[%emt 0:00:18]} 2. g3 {[%emt 0:00:04]} Nf6 {[%emt 0:00:17]} 3. Bg2 {[%emt 0:00:01]} d5 {[%emt 0:00:21]} 4. cxd5 {[%emt 0:00:02]} Nxd5 {[%emt 0:00:04]} 5. Nf3 {[%emt 0:00:01]} Nc6 {[%emt 0:00:10]} 6. O-O {[%emt 0:00:02]} Nb6 {[%emt 0:01:06]} 7. b3 {[%emt 0:00:01] A20: English Opening: 1...e5.} Be6 {[%emt 0:01:08]} 8. Bb2 {[%emt 0:00:37]} f6 {[%emt 0:00:21]} 9. d4 {[%emt 0:00:51]} e4 {[%emt 0:01:09]} 10. Ne1 {[%emt 0:01:03]} f5 {[%emt 0:00:12]} 11. f3 {[%emt 0:00:27]} exf3 $1 {[%emt 0:00:46]} 12. Nxf3 {[%emt 0:00:05]} Be7 {[%emt 0:00:26]} 13. Nc3 {[%emt 0:02:16]} Nd5 {[%emt 0:01:05]} 14. Qd2 {[%emt 0:00:33]} O-O {[%emt 0:00:55]} 15. Rad1 {[%emt 0:01:16]} Nxc3 {[%emt 0:06:44]} 16. Bxc3 {[%emt 0:01:59]} Bd5 {[%emt 0:00:21]} 17. e3 {[%emt 0:00:22]} a5 $146 {[%emt 0:10:16]} ({Predecessor:} 17... Qd6 18. Ne5 Rad8 19. Nd3 Bg5 {½-½ Venturelli,F (2153)-Benes,J (2217) EU-ch 2017 pr15 email}) 18. Ne5 {[%emt 0:00:20]} Bg5 {[%emt 0:03:34]} 19. Rfe1 {[%emt 0:01:53]} Ne7 {[%emt 0:08:21]} 20. Nf3 {[%emt 0:01:18]} (20. Bxa5 $2 Bxg2 21. Bxc7 Qxc7 $19) 20... Bxf3 {[%emt 0:13:20]} 21. Bxf3 {[%emt 0:00:04]} Nd5 {[%emt 0:00:07]} 22. Qd3 {[%emt 0:00:25]} c6 {[%emt 0:03:07]} 23. Bd2 {[%emt 0:06:16]} Qd6 {[%emt 0:07:42]} 24. Rc1 {[%emt 0:01:32]} a4 {[%emt 0:13:30] [#]} (24... g6 $11) 25. b4 {[%emt 0:03:24]} (25. Rc5 $1 $16) 25... Nxb4 {[%emt 0:07:15]} (25... Nc7 $11) 26. Qc4+ {[%emt 0:00:21]} (26. Qb1 $16 Nd5 27. Qxb7) 26... Nd5 $14 {[%emt 0:00:03]} 27. Bb4 $1 {[%emt 0:00:06]} Qh6 $1 {[%emt 0:06:54]} 28. Bxd5+ {[%emt 0:00:12]} (28. Bxf8 {looks sharper.} Bxe3+ 29. Kg2 Bxc1 30. Bc5) 28... cxd5 {[%emt 0:00:04]} 29. Qxd5+ {[%emt 0:00:05]} Kh8 $1 {[%emt 0:00:24]} 30. Bxf8 {[%emt 0:00:47]} Bxe3+ {[%emt 0:00:14]} 31. Kh1 {[%emt 0:00:10]} Bxc1 {[%emt 0:00:50]} 32. Qxf5 {[%emt 0:06:03]} (32. Qxb7 $2 Rxf8 33. Qb4 Qc6+ 34. Kg1 Rc8 $19) (32. Bxg7+ {simplifies} Qxg7 33. Rxc1 Re8 34. Qb5) 32... Bg5 {[%emt 0:07:59]} ({Black should try} 32... Bb2 $11) 33. d5 {[%emt 0:08:33]} (33. Bb4 $14) 33... Qf6 $11 {[%emt 0:00:14]} 34. Qxf6 {[%emt 0:00:10]} Bxf6 {[%emt 0:00:02]} 35. Bb4 {[%emt 0:06:12]} Kg8 {[%emt 0:00:13]} 36. Kg2 {[%emt 0:00:54]} Rc8 {[%emt 0:03:38]} 37. Kf3 {[%emt 0:00:21]} Kf7 {[%emt 0:00:44]} 38. a3 {[%emt 0:01:41]} Rc4 {[%emt 0:01:18]} 39. Re4 {[%emt 0:00:24]} b5 {[%emt 0:01:59]} 40. Re6 {[%emt 0:07:08]} Rd4 {[%emt 0:01:58]} 41. Rd6 {[%emt 0:30:20]} Be5 {[%emt 0:12:26] [#]} (41... Rd1 $11) 42. Rd7+ {[%emt 0:00:00]} ({Better is} 42. Rb6 $1 $16) 42... Kf6 $11 {[%emt 0:00:46]} 43. Ke3 {[%emt 0:00:00]} Kf5 {[%emt 0:06:05]} (43... h5 $11 {keeps the balance.}) 44. Rf7+ $16 {[%emt 0:00:00]} Kg6 {[%emt 0:00:02]} 45. Rb7 {[%emt 0:00:00]} ({Much worse is} 45. Rd7 $6 Bf6 $11) 45... Kf5 {[%emt 0:01:02]} (45... Rxd5 $2 {is the wrong capture.} 46. Ke4 Bxg3 47. Kxd5 $18) 46. Rxb5 {[%emt 0:00:00]} Re4+ $2 {[%emt 0:00:25] [#]} (46... Bf6 $16 47. Ra5 h5 48. d6+ (48. Rxa4 Rxd5 49. Ra5 Ke6 $16) 48... Kg4 49. Rxa4 h4) 47. Kf3 $1 $18 {[%emt 0:00:00]} g5 {[%emt 0:00:19]} 48. g4+ {[%emt 0:00:00]} Rxg4 {[%emt 0:00:19]} 49. d6 {[%emt 0:00:00]} Rf4+ {[%emt 0:01:29]} 50. Kg2 {[%emt 0:00:00]} Rg4+ {[%emt 0:00:53]} 51. Kh1 {[%emt 0:00:00]} Rd4 $2 {[%emt 0:08:57]} (51... Rc4 52. d7 Rc1+ 53. Kg2 Rd1) 52. Rxe5+ $18 {[%emt 0:00:00]} Kxe5 {[%emt 0:00:05]} 53. Bc3 {[%emt 0:00:00]} Kxd6 {[%emt 0:00:02]} 54. Bxd4 {[%emt 0:00:00]} Ke6 {[%emt 0:00:12]} 55. Kg2 {[%emt 0:00:00]} Kf5 {[%emt 0:00:03]} 56. Kf3 {[%emt 0:00:00]} h5 {[%emt 0:00:15]} 57. Bb6 {[%emt 0:00:00]} Ke5 {[%emt 0:00:14]} 58. Bd8 {[%emt 0:00:00]} Kf5 {[%emt 0:00:08]} 59. Be7 {[%emt 0:00:00]} h4 {[%emt 0:01:04]} 60. h3 {[%emt 0:00:00]} 1-0

[Event "XII Cracow ICC-A 2024"]
[Site "Krakow"]
[Date "2024.06.28"]
[Round "8.19"]
[White "Stanojevic, Ilija"]
[Black "Apoorv Kamble"]
[Result "1/2-1/2"]
[ECO "D10"]
[WhiteElo "2260"]
[BlackElo "2369"]
[Annotator "RC"]
[PlyCount "126"]
[EventDate "2024.06.20"]
[EventType "swiss"]
[EventCountry "POL"]
[SourceTitle "playchess.com"]
[Source "ChessBase"]
[SourceQuality "1"]
[TimeControl "40/5400+30:1800+30"]

1. d4 {[%emt 0:00:10]} d5 {[%emt 0:00:16]} 2. c4 {[%emt 0:00:14]} c6 {[%emt 0:00:03]} 3. Nc3 {[%emt 0:00:34]} Nf6 {[%emt 0:00:06]} 4. e3 {[%emt 0:00:14]} a6 {[%emt 0:00:05]} 5. Nf3 {[%emt 0:00:03]} b5 {[%emt 0:00:10]} 6. b3 {[%emt 0:00:45]} Bg4 {[%emt 0:00:16]} 7. a4 {[%emt 0:00:45]} b4 {[%emt 0:01:50]} 8. Nb1 {[%emt 0:01:04]} Nbd7 {[%emt 0:07:35]} 9. Bb2 {[%emt 0:01:54]} e6 {[%emt 0:02:36]} 10. Nbd2 {[%emt 0:01:07]} Bd6 {[%emt 0:02:00]} 11. h3 {[%emt 0:04:12]} Bf5 {[%emt 0:01:01]} 12. Rc1 {[%emt 0:06:52]} Ne4 {[%emt 0:05:07]} 13. Nxe4 {[%emt 0:03:48]} Bxe4 {[%emt 0:08:40]} 14. Nd2 {[%emt 0:03:06]} Bg6 {[%emt 0:02:41]} 15. Be2 {[%emt 0:00:29]} O-O {[%emt 0:00:51]} 16. O-O {[%emt 0:00:51]} Qe7 {[%emt 0:08:13]} 17. Re1 {[%emt 0:03:27]} Rfd8 {[%emt 0:04:42]} 18. Bf3 {[%emt 0:10:59]} Nf6 {[%emt 0:09:19]} 19. e4 {[%emt 0:07:10]} Bf4 {[%emt 0:01:43]} 20. exd5 {[%emt 0:05:58]} cxd5 {[%emt 0:00:39]} 21. cxd5 {[%emt 0:00:38]} Nxd5 {[%emt 0:02:23]} 22. Rc5 {[%emt 0:02:54]} Qb7 {[%emt 0:09:23]} 23. Nc4 {[%emt 0:02:48]} Bc7 {[%emt 0:12:42]} 24. Qe2 {[%emt 0:03:55]} Rac8 {[%emt 0:00:43]} 25. a5 {[%emt 0:00:44]} Qb8 {[%emt 0:07:26]} 26. Bxd5 {[%emt 0:05:10]} Rxd5 {[%emt 0:03:00]} 27. Rxd5 {[%emt 0:11:05]} exd5 {[%emt 0:00:06]} 28. Nb6 {[%emt 0:00:04]} Bxb6 {[%emt 0:03:31]} 29. axb6 {[%emt 0:00:02]} h6 {[%emt 0:00:22]} 30. Qxa6 {[%emt 0:02:22]} Rc6 {[%emt 0:00:39]} 31. Qb5 {[%emt 0:01:57]} Qxb6 {[%emt 0:00:09]} 32. Qxd5 {[%emt 0:01:31]} Qc7 {[%emt 0:02:20]} 33. Qe5 {[%emt 0:04:17]} Qxe5 {[%emt 0:01:43]} 34. dxe5 {[%emt 0:01:35]} Bf5 {[%emt 0:01:02]} 35. Bd4 {[%emt 0:04:13]} Be6 {[%emt 0:00:51]} 36. Rb1 {[%emt 0:05:30]} Ra6 {[%emt 0:01:17]} 37. Bc5 {[%emt 0:00:26]} Ra3 {[%emt 0:00:07]} 38. Bxb4 {[%emt 0:00:06]} Rxb3 {[%emt 0:00:07]} 39. Rxb3 {[%emt 0:00:04]} Bxb3 {[%emt 0:00:14]} 40. g4 {[%emt 0:00:01]} Bd1 {[%emt 0:00:55]} 41. Kg2 {[%emt 0:30:08]} h5 {[%emt 0:30:30]} 42. Kg3 {[%emt 0:00:34]} hxg4 {[%emt 0:00:06]} 43. hxg4 {[%emt 0:00:02]} g6 {[%emt 0:00:30]} 44. f4 {[%emt 0:00:15]} Bc2 {[%emt 0:01:12]} 45. Kh4 {[%emt 0:00:02]} Bd1 {[%emt 0:00:16]} 46. Kg5 {[%emt 0:00:01]} Be2 {[%emt 0:00:20]} 47. Bc3 {[%emt 0:00:22]} Kf8 {[%emt 0:00:22]} 48. f5 {[%emt 0:00:18]} gxf5 {[%emt 0:00:04]} 49. Kxf5 {[%emt 0:00:09]} Ke8 {[%emt 0:00:16]} 50. g5 {[%emt 0:00:01]} Bc4 {[%emt 0:00:17]} 51. Kf6 {[%emt 0:00:02]} Bb3 {[%emt 0:00:17]} 52. Bb4 {[%emt 0:00:15]} Kd7 {[%emt 0:00:14]} 53. e6+ {[%emt 0:00:14]} Ke8 {[%emt 0:00:53]} 54. e7 {[%emt 0:00:37]} Bc2 {[%emt 0:00:17]} 55. Kg7 {[%emt 0:00:17]} Bg6 {[%emt 0:00:27]} 56. Kh8 {[%emt 0:00:31]} Bh5 {[%emt 0:00:44]} 57. Kg8 {[%emt 0:00:10]} Bg6 {[%emt 0:00:50]} 58. Kh8 {[%emt 0:00:25]} Bb1 {[%emt 0:00:14]} 59. Kg8 {[%emt 0:00:06]} Bc2 {[%emt 0:00:10]} 60. Kg7 {[%emt 0:00:05]} Bg6 {[%emt 0:00:32]} 61. Ba3 {[%emt 0:00:12]} Bb1 {[%emt 0:00:12]} 62. Bb4 {[%emt 0:00:02]} Bd3 {[%emt 0:00:07]} 63. Ba3 {[%emt 0:00:01]} Bc2 {[%emt 0:00:02]} 1/2-1/2

[Event "XII Cracow ICC-A 2024"]
[Site "Krakow"]
[Date "2024.06.28"]
[Round "8.20"]
[White "Vincenti, Leonardo"]
[Black "Nandhidhaa, P V"]
[Result "0-1"]
[ECO "B00"]
[WhiteElo "2166"]
[BlackElo "2344"]
[Annotator "RC"]
[PlyCount "120"]
[EventDate "2024.06.20"]
[EventType "swiss"]
[EventCountry "POL"]
[SourceTitle "playchess.com"]
[Source "ChessBase"]
[SourceQuality "1"]
[TimeControl "40/5400+30:1800+30"]

1. e4 {[%emt 0:00:02]} d6 {[%emt 0:00:07]} 2. d4 {[%emt 0:00:04]} Nf6 {[%emt 0:00:03]} 3. Bd3 {[%emt 0:01:25]} e5 {[%emt 0:00:44]} 4. c3 {[%emt 0:01:08]} Nc6 {[%emt 0:11:12]} 5. Nf3 {[%emt 0:02:50]} Bg4 {[%emt 0:07:18]} 6. Be3 {[%emt 0:02:31]} d5 {[%emt 0:06:42]} 7. Nbd2 {[%emt 0:33:42]} exd4 {[%emt 0:10:11]} 8. Bxd4 {[%emt 0:05:15]} Nxd4 {[%emt 0:01:25]} 9. cxd4 {[%emt 0:00:05]} dxe4 {[%emt 0:00:48]} 10. Nxe4 {[%emt 0:01:03]} Nxe4 {[%emt 0:04:06]} 11. Bxe4 {[%emt 0:00:20]} Bb4+ {[%emt 0:00:17]} 12. Kf1 {[%emt 0:00:06]} O-O {[%emt 0:01:40]} 13. Qd3 {[%emt 0:09:32]} g6 {[%emt 0:02:53]} 14. Ne5 {[%emt 0:01:54]} Bc8 {[%emt 0:04:16]} 15. h4 {[%emt 0:07:32]} c5 {[%emt 0:02:49]} 16. a3 {[%emt 0:04:31]} Ba5 {[%emt 0:00:23]} 17. b4 {[%emt 0:00:13]} cxb4 {[%emt 0:09:02]} 18. h5 {[%emt 0:02:59]} g5 {[%emt 0:05:55]} 19. Bxh7+ {[%emt 0:01:42]} Kh8 {[%emt 0:00:16]} 20. Be4 {[%emt 0:07:55]} Qf6 {[%emt 0:00:59]} 21. axb4 {[%emt 0:04:53]} Bb6 {[%emt 0:01:16]} 22. Re1 {[%emt 0:06:40]} Be6 {[%emt 0:02:43]} 23. Bxb7 {[%emt 0:04:57]} Rad8 {[%emt 0:01:31]} 24. Qf3 {[%emt 0:00:04]} Qxf3 {[%emt 0:01:20]} 25. Bxf3 {[%emt 0:00:03]} Bb3 {[%emt 0:02:30]} 26. Rb1 {[%emt 0:01:25]} Ba4 {[%emt 0:04:22]} 27. d5 {[%emt 0:00:29]} Bb5+ {[%emt 0:00:36]} 28. Kg1 {[%emt 0:00:01]} Rde8 {[%emt 0:00:28]} 29. Re1 {[%emt 0:00:58]} Bc7 {[%emt 0:00:41]} 30. Ng6+ {[%emt 0:00:35]} fxg6 {[%emt 0:00:17]} 31. hxg6+ {[%emt 0:00:02]} Kg8 {[%emt 0:00:11]} 32. Rc1 {[%emt 0:00:27]} Bf4 {[%emt 0:02:07]} 33. Rd1 {[%emt 0:00:16]} Bd6 {[%emt 0:01:50]} 34. Rh7 {[%emt 0:00:43]} Re7 {[%emt 0:01:36]} 35. Rxe7 {[%emt 0:00:36]} Bxe7 {[%emt 0:00:01]} 36. d6 {[%emt 0:00:22]} Bf6 {[%emt 0:00:17]} 37. Bd5+ {[%emt 0:00:38]} Kg7 {[%emt 0:00:27]} 38. Bf7 {[%emt 0:00:04]} Rd8 {[%emt 0:00:24]} 39. g3 {[%emt 0:01:07]} a6 {[%emt 0:01:02]} 40. f4 {[%emt 0:00:32]} Be7 {[%emt 0:04:58]} 41. fxg5 {[%emt 0:12:30]} Rxd6 {[%emt 0:00:51]} 42. Re1 {[%emt 0:00:27]} Bxg5 {[%emt 0:00:42]} 43. Re5 {[%emt 0:00:06]} Bf6 {[%emt 0:01:52]} 44. Rh5 {[%emt 0:00:26]} Rd2 {[%emt 0:02:54]} 45. Rh7+ {[%emt 0:02:52]} Kf8 {[%emt 0:00:15]} 46. Bd5 {[%emt 0:00:05]} Bd4+ {[%emt 0:01:03]} 47. Kh1 {[%emt 0:00:02]} Bg7 {[%emt 0:00:17]} 48. Bf3 {[%emt 0:00:59]} Rf2 {[%emt 0:03:37]} 49. Be4 {[%emt 0:00:13]} Re2 {[%emt 0:00:07]} 50. Bd5 {[%emt 0:00:19]} Re5 {[%emt 0:00:35]} 51. Bb3 {[%emt 0:00:19]} Re3 {[%emt 0:01:14]} 52. Bf7 {[%emt 0:00:20]} Rxg3 {[%emt 0:01:38]} 53. Rh5 {[%emt 0:00:02]} Bf6 {[%emt 0:01:28]} 54. Rc5 {[%emt 0:00:29]} Kg7 {[%emt 0:00:27]} 55. Rh5 {[%emt 0:00:05]} Rg5 {[%emt 0:02:39]} 56. Rh7+ {[%emt 0:01:18]} Kf8 {[%emt 0:00:01]} 57. Bd5 Rxg6 {[%emt 0:01:30]} 58. Rf7+ {[%emt 0:00:26]} Ke8 {[%emt 0:00:05]} 59. Ra7 {[%emt 0:00:04]} Rg7 {[%emt 0:01:16]} 60. Bb7 {[%emt 0:00:55]} Rxb7 {[%emt 0:01:10]} 0-1

[Event "XII Cracow ICC-A 2024"]
[Site "Krakow"]
[Date "2024.06.28"]
[Round "8.21"]
[White "Suder, Jakub"]
[Black "Kutowski, Marcel"]
[Result "1/2-1/2"]
[ECO "A50"]
[WhiteElo "2328"]
[BlackElo "2230"]
[Annotator "RC"]
[PlyCount "31"]
[EventDate "2024.06.20"]
[EventType "swiss"]
[EventCountry "POL"]
[SourceTitle "playchess.com"]
[Source "ChessBase"]
[SourceQuality "1"]
[TimeControl "40/5400+30:1800+30"]

1. d4 {[%emt 0:02:11]} Nf6 {[%emt 0:00:06]} 2. c4 {[%emt 0:00:02]} e6 {[%emt 0:00:07]} 3. a3 {[%emt 0:00:35]} d5 {[%emt 0:01:04]} 4. Nc3 {[%emt 0:00:11]} Be7 {[%emt 0:01:25]} 5. Bg5 {[%emt 0:00:19]} O-O {[%emt 0:00:27]} 6. e3 {[%emt 0:00:05]} b6 {[%emt 0:00:44]} 7. cxd5 {[%emt 0:00:32]} exd5 {[%emt 0:01:45]} 8. Bd3 {[%emt 0:00:08]} Bb7 {[%emt 0:00:47]} 9. Nge2 {[%emt 0:00:18]} c5 {[%emt 0:02:20]} 10. Rc1 {[%emt 0:00:41]} Nbd7 {[%emt 0:02:49]} 11. O-O {[%emt 0:01:21]} a6 {[%emt 0:02:59]} 12. Bb1 {[%emt 0:01:17]} Re8 {[%emt 0:05:33]} 13. Qc2 {[%emt 0:02:06]} c4 {[%emt 0:09:58]} 14. Bh4 {[%emt 0:04:00]} Nf8 {[%emt 0:02:50]} 15. f3 {[%emt 0:01:05]} b5 {[%emt 0:02:11]} 16. Bf2 {[%emt 0:05:46]} 1/2-1/2

[Event "XII Cracow ICC-A 2024"]
[Site "Krakow"]
[Date "2024.06.28"]
[Round "8.22"]
[White "Pyrig, Roman"]
[Black "Petrovic, Aleksa"]
[Result "1-0"]
[ECO "B07"]
[WhiteElo "2260"]
[BlackElo "2303"]
[Annotator "RC"]
[PlyCount "51"]
[EventDate "2024.06.20"]
[EventType "swiss"]
[EventCountry "POL"]
[SourceTitle "playchess.com"]
[Source "ChessBase"]
[SourceQuality "1"]
[TimeControl "40/5400+30:1800+30"]

1. e4 {[%emt 0:02:39]} d6 {[%emt 0:00:02]} 2. d4 {[%emt 0:00:07]} Nf6 {[%emt 0:00:04]} 3. Nc3 {[%emt 0:00:05]} Nbd7 {[%emt 0:00:05]} 4. g4 {[%emt 0:06:19]} h6 {[%emt 0:00:53]} 5. h3 {[%emt 0:00:38]} e5 {[%emt 0:00:42]} 6. Nge2 {[%emt 0:00:14]} b5 {[%emt 0:14:04]} 7. Nxb5 {[%emt 0:03:43]} Nxe4 {[%emt 0:00:10]} 8. Bg2 {[%emt 0:00:04]} Bb7 {[%emt 0:00:50]} 9. d5 {[%emt 0:02:45]} Nef6 {[%emt 0:09:27]} 10. c4 {[%emt 0:00:07]} g6 {[%emt 0:03:00]} 11. Be3 {[%emt 0:01:03]} a6 {[%emt 0:04:05]} 12. Nbc3 {[%emt 0:00:01]} a5 {[%emt 0:01:45]} 13. Qd2 {[%emt 0:00:20]} Bg7 {[%emt 0:01:35]} 14. Ng3 {[%emt 0:00:29]} h5 {[%emt 0:03:52]} 15. g5 {[%emt 0:01:20]} Ng8 {[%emt 0:00:12]} 16. Nge4 {[%emt 0:02:17]} Ne7 {[%emt 0:06:35]} 17. c5 {[%emt 0:00:49]} dxc5 {[%emt 0:00:32]} 18. d6 {[%emt 0:01:00]} Nf5 {[%emt 0:00:37]} 19. dxc7 {[%emt 0:00:03]} Qc8 {[%emt 0:02:18]} 20. Nb5 {[%emt 0:00:02]} Bf8 {[%emt 0:05:10]} 21. O-O-O {[%emt 0:00:27]} Bxe4 {[%emt 0:06:09]} 22. Bxe4 {[%emt 0:00:03]} Nd4 {[%emt 0:00:23]} 23. Bxd4 {[%emt 0:00:17]} cxd4 {[%emt 0:00:06]} 24. Bxa8 {[%emt 0:00:05]} Qxa8 {[%emt 0:00:15]} 25. Qc2 {[%emt 0:00:23]} Bc5 {[%emt 0:01:18]} 26. c8=Q+ {[%emt 0:00:19]} 1-0

[Event "XII Cracow ICC-A 2024"]
[Site "Krakow"]
[Date "2024.06.28"]
[Round "8.23"]
[White "Lach, Aleksandra"]
[Black "Berin, Artem"]
[Result "0-1"]
[ECO "A05"]
[WhiteElo "2300"]
[BlackElo "2234"]
[Annotator "RC"]
[PlyCount "72"]
[EventDate "2024.06.20"]
[EventType "swiss"]
[EventCountry "POL"]
[SourceTitle "playchess.com"]
[Source "ChessBase"]
[SourceQuality "1"]
[TimeControl "40/5400+30:1800+30"]

1. Nf3 {[%emt 0:00:09]} d5 {[%emt 0:00:10]} 2. g3 {[%emt 0:00:23]} Nf6 {[%emt 0:00:13]} 3. Bg2 {[%emt 0:00:08]} e6 {[%emt 0:00:05]} 4. O-O {[%emt 0:00:17]} Be7 {[%emt 0:00:12]} 5. d3 {[%emt 0:00:23]} O-O {[%emt 0:00:08]} 6. Nbd2 {[%emt 0:00:12]} a5 {[%emt 0:00:07]} 7. e4 {[%emt 0:11:55]} a4 {[%emt 0:00:07]} 8. a3 {[%emt 0:08:30]} c5 {[%emt 0:00:25]} 9. e5 {[%emt 0:07:33]} Nfd7 {[%emt 0:00:07]} 10. Re1 {[%emt 0:00:04]} Nc6 {[%emt 0:00:05]} 11. Nf1 {[%emt 0:00:27]} Ra6 {[%emt 0:00:20]} 12. c3 {[%emt 0:17:48]} b5 {[%emt 0:00:10]} 13. h4 {[%emt 0:03:53]} Bb7 {[%emt 0:00:09]} 14. N1h2 {[%emt 0:08:48]} d4 {[%emt 0:01:22]} 15. Bf4 {[%emt 0:13:02]} dxc3 {[%emt 0:09:41]} 16. bxc3 {[%emt 0:00:46]} Nb6 {[%emt 0:00:19]} 17. Bg5 {[%emt 0:03:02]} h6 {[%emt 0:03:50]} 18. Bxe7 {[%emt 0:02:28]} Qxe7 {[%emt 0:01:52]} 19. Nd2 {[%emt 0:03:56]} Rd8 {[%emt 0:01:34]} 20. Qb1 {[%emt 0:00:47]} b4 {[%emt 0:06:08]} 21. cxb4 {[%emt 0:01:29]} cxb4 {[%emt 0:00:07]} 22. axb4 {[%emt 0:00:12]} Nd4 {[%emt 0:00:22]} 23. Bxb7 {[%emt 0:01:41]} Qxb7 {[%emt 0:00:07]} 24. Ne4 {[%emt 0:00:21]} Nd7 {[%emt 0:03:31]} 25. Nd6 {[%emt 0:02:33]} Qd5 {[%emt 0:03:51]} 26. Nc4 {[%emt 0:00:52]} Nb3 {[%emt 0:03:42]} 27. Ra2 {[%emt 0:01:43]} Rb8 {[%emt 0:00:19]} 28. Ne3 {[%emt 0:02:18]} Qb5 {[%emt 0:01:26]} 29. Nf3 {[%emt 0:04:16]} Nxe5 {[%emt 0:01:34]} 30. Nxe5 {[%emt 0:01:51]} Qxe5 {[%emt 0:00:05]} 31. Qd1 {[%emt 0:00:47]} Nd4 {[%emt 0:02:25]} 32. f4 {[%emt 0:02:22]} Qd6 {[%emt 0:00:44]} 33. Nc4 {[%emt 0:00:47]} Qd5 {[%emt 0:00:21]} 34. Re4 {[%emt 0:01:03]} Rxb4 {[%emt 0:00:54]} 35. Qa1 {[%emt 0:00:39]} Rxc4 {[%emt 0:01:23]} 36. Re5 {[%emt 0:00:30]} Nf3+ {[%emt 0:00:05]} 0-1

[Event "XII Cracow ICC-A 2024"]
[Site "Krakow"]
[Date "2024.06.28"]
[Round "8.24"]
[White "Mirski, Stanislaw"]
[Black "Aakash Sharadchandra, Dalvi"]
[Result "0-1"]
[ECO "D02"]
[WhiteElo "2164"]
[BlackElo "2291"]
[Annotator "RC"]
[PlyCount "86"]
[EventDate "2024.06.20"]
[EventType "swiss"]
[EventCountry "POL"]
[SourceTitle "playchess.com"]
[Source "ChessBase"]
[SourceQuality "1"]
[TimeControl "40/5400+30:1800+30"]

1. d4 Nf6 2. Nf3 d5 3. g3 c5 4. c4 dxc4 5. Qa4+ Nbd7 6. dxc5 e6 7. c6 bxc6 8. Qxc4 Qb6 9. Bg2 Bc5 10. O-O Ba6 11. Qc2 Ng4 12. Nc3 Bxf2+ 13. Kh1 Be3 14. h3 Bxc1 15. Qxc1 Ngf6 16. Rd1 Qc7 17. Kh2 O-O 18. e4 Rad8 19. Qe3 Qb6 20. Qxb6 Nxb6 21. e5 {[%emt 1:28:27]} Nfd5 {[%emt 1:01:51]} 22. Nxd5 {[%emt 0:03:12]} cxd5 {[%emt 0:00:27]} 23. Re1 {[%emt 0:05:26]} Rc8 {[%emt 0:03:51]} 24. Nd4 {[%emt 0:00:05]} Rc7 {[%emt 0:05:50]} 25. g4 {[%emt 0:00:05]} Rfc8 {[%emt 0:00:17]} 26. g5 {[%emt 0:00:21]} Na4 {[%emt 0:04:26]} 27. b3 {[%emt 0:00:38]} Nc5 {[%emt 0:00:16]} 28. Rad1 {[%emt 0:00:50]} Nd3 {[%emt 0:03:11]} 29. Re3 {[%emt 0:00:40]} Nb4 {[%emt 0:00:10]} 30. a4 {[%emt 0:02:00]} Rc3 {[%emt 0:01:07]} 31. Ree1 {[%emt 0:01:14]} Bd3 {[%emt 0:01:25]} 32. a5 {[%emt 0:00:34]} Nc2 {[%emt 0:00:21]} 33. Ne2 {[%emt 0:01:32]} Rxb3 {[%emt 0:07:13]} 34. Nc1 {[%emt 0:00:17]} Nxe1 {[%emt 0:00:07]} 35. Nxb3 {[%emt 0:00:07]} Bc2 {[%emt 0:00:31]} 36. Rxe1 {[%emt 0:00:11]} Bxb3 {[%emt 0:00:05]} 37. Re3 {[%emt 0:01:59]} Bc4 {[%emt 0:00:24]} 38. Ra3 {[%emt 0:00:05]} Rb8 {[%emt 0:00:18]} 39. Kg3 {[%emt 0:01:15]} Kf8 {[%emt 0:01:28]} 40. Kf4 {[%emt 0:00:11]} Ke7 {[%emt 0:00:08]} 41. h4 {[%emt 0:30:36]} f6 {[%emt 0:30:11]} 42. h5 {[%emt 0:01:01]} fxg5+ {[%emt 0:04:30]} 43. Kxg5 {[%emt 0:00:06]} Rb3 {[%emt 0:00:10]} 0-1